[Event "IM Marmaris Karia III 2018"]
[Site "Mentese Mugla"]
[Date "2018.10.29"]
[Round "8.3"]
[White "Gevorgyan, Maria"]
[Black "Guseynov, Alihan"]
[Result "1/2-1/2"]
[ECO "B23"]
[WhiteElo "2207"]
[BlackElo "2284"]
[Annotator "NA"]
[PlyCount "60"]
[EventDate "2018.10.26"]
[EventType "tourn"]
[EventCountry "TUR"]
[SourceTitle "playchess.com"]
[Source "ChessBase"]
[SourceQuality "1"]
[TimeControl "5400+30"]

1. e4 {[%emt 0:00:30]} c5 {[%emt 0:00:30]} 2. Nc3 {[%emt 0:00:00]} Nc6 {[%emt 0:00:30]} 3. Bb5 {[%emt 0:00:00]} Nd4 {[%emt 0:00:00]} 4. Bc4 {[%emt 0:00:00]} g6 {[%emt 0:00:00]} 5. Nf3 {[%emt 0:00:00]} Bg7 {[%emt 0:00:30]} 6. Nxd4 {[%emt 0:00:30]} cxd4 {[%emt 0:00:30]} 7. Qf3 {[%emt 0:00:00]} Nh6 {[%emt 0:00:30] LiveBook: 211 Games} 8. d3 {[%emt 0:00:00] B23: Closed Sicilian: Lines without g3} (8. Ne2 O-O 9. h3 e6 10. d3 f5 11. Qg3 fxe4 12. dxe4 d5 13. exd5 exd5 14. Bd3 Nf5 15. Qh2 Qe7 16. Bd2 Nd6 {0-1 (36) Hou,Y (2609)-Shirov,A (2696) Tromsoe 2013}) 8... Qa5 {[%emt 0:03:30]} 9. Bxh6 {[%emt 0:00:30]} Bxh6 {[%emt 0:00:30]} 10. Qxf7+ {[%emt 0:00:30]} Kd8 {[%emt 0:00:00]} 11. Qd5 {[%emt 0:00:00]} Qxd5 {[%emt 0:00:00]} 12. Nxd5 {[%emt 0:00:00]} e6 {[%emt 0:00:00]} 13. Nf6 {[%emt 0:00:30]} Bg7 {[%emt 0:01:00]} 14. e5 {[%emt 0:00:30]} Bxf6 {[%emt 0:01:30]} 15. exf6 {[%emt 0:00:30]} Rf8 {[%emt 0:00:30] [#]} 16. h4 $146 {[%emt 0:16:30]} Rxf6 {[%emt 0:07:30]} 17. h5 {[%emt 0:01:30]} g5 {[%emt 0:04:30]} 18. h6 {[%emt 0:00:30]} Ke7 {[%emt 0:04:30]} 19. Rh5 {[%emt 0:01:30]} Rg6 {[%emt 0:15:30]} 20. f3 {[%emt 0:03:30]} d5 {[%emt 0:04:30]} 21. Bb3 {[%emt 0:00:00]} Bd7 {[%emt 0:01:30]} 22. c3 {[%emt 0:02:00]} dxc3 {[%emt 0:02:30]} 23. bxc3 {[%emt 0:00:30]} Rgg8 {[%emt 0:09:30]} 24. Kd2 {[%emt 0:00:30]} Raf8 {[%emt 0:01:30]} 25. Re1 {[%emt 0:03:30]} Kd6 {[%emt 0:01:30]} 26. Bd1 {[%emt 0:00:30]} Be8 {[%emt 0:07:30]} 27. Rh2 {[%emt 0:00:30]} e5 {[%emt 0:10:30]} 28. g3 $11 {[%emt 0:12:30]} Bg6 {[%emt 0:02:30]} 29. Ke3 {[%emt 0:11:30]} Rc8 {[%emt 0:01:30]} 30. Kd2 {[%emt 0:02:30]} Rgf8 {[%emt 0:00:30]} 1/2-1/2

[Event "IM Marmaris Karia III 2018"]
[Site "Mentese Mugla"]
[Date "2018.10.30"]
[Round "10.1"]
[White "Gevorgyan, Maria"]
[Black "Eminov, Orkhan"]
[Result "1-0"]
[ECO "B75"]
[WhiteElo "2207"]
[BlackElo "2343"]
[Annotator "NA"]
[PlyCount "91"]
[EventDate "2018.10.26"]
[EventType "tourn"]
[EventCountry "TUR"]
[SourceTitle "playchess.com"]
[Source "ChessBase"]
[SourceQuality "1"]
[TimeControl "5400+30"]

1. e4 {[%emt 0:00:30]} c5 {[%emt 0:00:30]} 2. Nf3 {[%emt 0:00:00]} d6 {[%emt 0:00:00]} 3. d4 {[%emt 0:00:00]} cxd4 {[%emt 0:00:00]} 4. Nxd4 {[%emt 0:00:00]} Nf6 {[%emt 0:00:00]} 5. Nc3 {[%emt 0:00:00]} g6 {[%emt 0:00:00]} 6. f3 {[%emt 0:00:30]} Bg7 {[%emt 0:00:30]} 7. Be3 {[%emt 0:00:00]} a6 {[%emt 0:00:00]} 8. Bc4 {[%emt 0:02:00]} b5 {[%emt 0:07:00]} 9. Bb3 {[%emt 0:02:30] B75: Sicilian Dragon: Yugoslav Attack, Miscellaneous} Bb7 {[%emt 0:00:30]} 10. Qd2 {[%emt 0:01:30]} h5 {[%emt 0:02:30]} 11. h4 {[%emt 0:02:30]} (11. O-O-O Nbd7 12. Rhe1 Rc8 13. Kb1 Ne5 14. Bg5 Nc4 15. Bxc4 Rxc4 16. Nb3 {1-0 (42) Abrahamyan,T (2364)-Can,E (2578) Reykjavik 2017}) 11... Nbd7 {[%emt 0:00:30]} 12. a4 {[%emt 0:02:30]} bxa4 {[%emt 0:28:30]} 13. Nxa4 $146 {[%emt 0:06:30]} ({Predecessor:} 13. Bxa4 Rc8 14. O-O O-O 15. Bxd7 Nxd7 16. Nb3 {½-½ (30) Sadubayev,A (2117)-Dordzhieva,D (2316) Ulaanbaatar 2015}) 13... Rc8 {[%emt 0:11:30]} 14. Ne2 {[%emt 0:06:30]} O-O {[%emt 0:04:30]} 15. Nf4 {[%emt 0:07:30]} Ne5 {[%emt 0:07:30]} 16. Nb6 {[%emt 0:05:30]} Rb8 {[%emt 0:01:30]} 17. Nbd5 {[%emt 0:04:30]} Bxd5 {[%emt 0:02:30]} 18. Nxd5 {[%emt 0:02:30]} Nxd5 {[%emt 0:04:30]} 19. Qxd5 {[%emt 0:03:30]} Rb5 {[%emt 0:08:09]} 20. Qd2 {[%emt 0:02:30]} a5 {[%emt 0:00:42]} 21. Bd4 {[%emt 0:00:30]} Qc7 {[%emt 0:06:00]} 22. Ra4 {[%emt 0:04:30]} Nd7 {[%emt 0:03:07]} 23. Bc4 {[%emt 0:04:30]} Rbb8 {[%emt 0:03:03]} (23... Rb7 $15 24. Bxg7 Kxg7) 24. Qc3 $1 {[%emt 0:00:30]} Nc5 {[%emt 0:01:07]} (24... Rfc8 $1 $11 25. Bxg7 Nb6) 25. Bxg7 {[%emt 0:00:30]} e5 {[%emt 0:04:36]} 26. Rxa5 {[%emt 0:13:30]} ({Don't take} 26. Bxf8 Nxa4 27. Bxd6 Qxd6 $11) 26... Kxg7 {[%emt 0:00:23] [#]} 27. b3 $1 {[%emt 0:00:30]} Ne6 {[%emt 0:02:12]} 28. Kd2 {[%emt 0:08:30]} Nd4 {[%emt 0:01:49]} 29. Raa1 {[%emt 0:00:30]} Rfc8 {[%emt 0:00:23]} 30. f4 {[%emt 0:03:28]} Qc5 {[%emt 0:00:21]} 31. Rhf1 {[%emt 0:00:25]} Rc7 {[%emt 0:00:48]} 32. Ra4 {[%emt 0:02:02]} Qc6 {[%emt 0:00:42]} 33. Qe3 {[%emt 0:00:56]} Rd8 {[%emt 0:00:29]} 34. c3 {[%emt 0:01:14]} Nb5 {[%emt 0:00:32]} 35. Rb4 {[%emt 0:01:11]} Na3 {[%emt 0:00:15]} 36. Bd5 {[%emt 0:00:16]} Qa6 {[%emt 0:00:14]} 37. Qd3 {[%emt 0:00:18]} Qc8 $18 {[%emt 0:00:59]} 38. Ra4 {[%emt 0:00:27]} Nb5 {[%emt 0:00:12]} 39. Qxb5 {[%emt 0:00:06]} Rxc3 {[%emt 0:00:06]} 40. Rc4 {[%emt 0:00:03]} Rxc4 {[%emt 0:00:09]} 41. Qxc4 {[%emt 0:00:09]} Qg4 {[%emt 0:00:03]} 42. fxe5 {[%emt 0:00:20]} dxe5 {[%emt 0:00:23]} 43. Rxf7+ {[%emt 0:00:42]} Kh6 {[%emt 0:00:12]} 44. Qe2 {[%emt 0:00:54]} Qxh4 {[%emt 0:00:18]} 45. Qe3+ {[%emt 0:00:04]} g5 {[%emt 0:00:04]} 46. Qb6+ {[%emt 0:00:04]} 1-0